Cogmind - Beta 10.2 @@@ ROGUE MODE // 2021.04.04 @ 09:14:44 Player: thingamajigger Result: Self-destructed Performance ------------- Evolutions (2) 1000 Regions Visited (5) 1000 Robots Destroyed (44) 220 Value Destroyed (1048) 1048 Prototype IDs (24) 480 Alien Tech Used (0) 0 Bonus (28) 28 TOTAL SCORE: 3776 Bonus ------- Follower Combat Kills 50 Aligned with FarCom 300 Friendly Fire -322 Cogmind --------- Core Integrity 409/550 Matter 260/300 Energy 11/100 System Corruption 5% Temperature Cool (0) Movement Treading (180) Ox1 Location -8/Materials Parts ------- > --- POWER (1) -------- (None) > --- PROPULSION (2) --- Medium Treads Medium Treads > --- UTILITY (6) ------ Improved Heat Sink Humpback Advanced Signal Interpreter Armor Integrity Analyzer Improved Light Armor Plating > --- WEAPON (2) ------- Plasma Cannon Plasma Cannon > --- INVENTORY (24) --- Medium Treads Compact Wheel Large Storage Unit Plasma Cannon Plasma Cannon Improved Grenade Launcher Mining Claw Peak State ------------ > --- POWER ------------ Deuterium Engine > --- PROPULSION ------- Medium Treads Medium Treads > --- UTILITY ---------- Improved Heat Sink Humpback Advanced Signal Interpreter Armor Integrity Analyzer Improved Light Armor Plating > --- WEAPON ----------- Plasma Cannon Plasma Cannon > --- INVENTORY -------- Compact Wheel Large Storage Unit Plasma Cannon Plasma Cannon Improved Grenade Launcher Mining Claw [Rating: 33] Favorites ----------- Power Deuterium Engine Engine Deuterium Engine Propulsion Compact Wheel Treads Medium Treads Leg Aluminum Leg Wheel Compact Wheel Flight Unit Flight Unit Utility Targeting Computer Device Experimental Sensor Array Storage Medium Storage Unit Processor Targeting Computer Protection Improved Light Armor Plating Weapon EM Shotgun Energy Gun EM Shotgun Energy Cannon Plasma Cannon Ballistic Gun Assault Rifle Slashing Weapon Mining Claw Build | -11 -10 -10 -10 -9 -8 ------- Run | Scr Mat Min Exi Min Mat Slots Evolved 4 | . . . . . 4 Power . | . . . . . . Propulsion . | . . . . . . Utility 4 | . . . . . 4 Weapon . | . . . . . . Parts Attached 52 | 6 13 2 1 3 27 Power 3 | 1 1 1 . . . Engine 3 | 1 1 1 . . . Core . | . . . . . . Reactor . | . . . . . . Propulsion 9 | 2 4 . . . 3 Treads 2 | . . . . . 2 Leg 2 | 2 . . . . . Wheel 3 | . 2 . . . 1 Hover . | . . . . . . Flight 2 | . 2 . . . . Utility 14 | 1 3 . 1 1 8 Device 3 | . 1 . . . 2 Storage 6 | 1 1 . 1 . 3 Processor 4 | . 1 . . . 3 Hackware . | . . . . . . Protection 1 | . . . . 1 . Artifact . | . . . . . . Weapon 26 | 2 5 1 . 2 16 Energy Gun 15 | 2 3 1 . 1 8 Energy Cannon 4 | . 1 . . . 3 Ballistic Gun 1 | . 1 . . . . Ballistic Cannon . | . . . . . . Launcher . | . . . . . . Special Weapon . | . . . . . . Impact Weapon . | . . . . . . Slashing Weapon 6 | . . . . 1 5 Piercing Weapon . | . . . . . . Special Melee Weapon . | . . . . . . Unidentified Prototypes 1 | . . . . . 1 Parts Lost 16 | . 7 1 . . 8 Power 2 | . 1 . . . 1 Propulsion 4 | . 2 . . . 2 Utility 2 | . . . . . 2 Weapon 8 | . 4 1 . . 3 Highest Loss Streak 3 | . 3 1 . . 2 Average Slot Usage (%) 92 | . 87 100 100 100 86 Engine 12 | . 13 14 14 14 8 Leg 2 | . 11 . . . . Wheel 18 | . 4 28 28 28 14 Flight 1 | . 8 . . . . Device 3 | . 5 . . . 6 Storage 13 | . 14 14 14 14 11 Processor 10 | . 5 14 14 7 15 Protection 4 | . . . . 6 9 Energy Gun 20 | . 15 28 28 27 13 Energy Cannon 1 | . 4 . . . 2 Naked Turns . | . . . . . . Heaviest Build 107 | 13 20 23 31 34 107 Greatest Support 56 | 20 32 32 32 32 56 Greatest Overweight (x) 6 | 4 6 . . 1 6 Average Overweight (x) . | . . . . . 3 Largest Inventory Capacity 30 | 6 10 8 10 10 30 Average Capacity 13 | 5 7 8 8 10 24 Most Carried 10 | . 8 8 10 10 8 Average Carried 6 | . 3 7 7 9 4 Final Capacity 24 | 6 8 8 10 10 24 Final Carried 10 | . 7 7 10 9 7 Class Distribution -------------------- 69% | Mutant 15% | Hauler-Mutant 13% | Hauler-Skirmisher Dominant Class ---------------- Mutant | -10/Materials Mutant | -10/Mines Mutant | -10/Exiles Mutant | -9/Mines Hauler-Mutant | -8/Materials Resources | -11 -10 -10 -10 -9 -8 ----------- Run | Scr Mat Min Exi Min Mat Matter Collected 678 | 260 103 75 . 40 200 Remotely . | . . . . . . Salvage Created 1550 | 81 418 168 . 335 548 Parts 73 | 1 18 11 . 23 20 Haulers Intercepted . | . . . . . . Recyclers Shooed . | . . . . . . Parts Field Recycled . | . . . . . . Retrieved Matter . | . . . . . . Parts Self-Destructed . | . . . . . . Prevented . | . . . . . . Kills | -11 -10 -10 -10 -9 -8 ------- Run | Scr Mat Min Exi Min Mat Combat Hostiles Destroyed 36 | . 11 5 . 13 7 Guns 22 | . 5 5 . 7 5 Cannons 7 | . 5 . . . 2 AOE 6 | . . . . 6 . Classes Destroyed 8 | 2 3 1 . 1 1 Worker 2 | . 1 . . . 1 Tunneler 1 | 1 . . . . . Recycler 2 | 1 . . . . 1 Watcher 1 | . . . . . 1 Swarmer 16 | . 3 3 . 8 2 Grunt 18 | . 8 . . 4 6 Brawler 1 | . . . . 1 . Sentry 3 | . . 2 . . 1 Best Kill Streak 7 | 2 4 3 . 7 3 Combat Bots Only 7 | . 4 3 . 7 2 Max Kills in Single Turn 4 | 1 1 2 . 4 1 Gunslinging 1 | . . 1 . . . Exploded 4 | . . . . 4 . Melee . | . . . . . . Uniques/NPCs Destroyed . | . . . . . . Combat | -11 -10 -10 -10 -9 -8 -------- Run | Scr Mat Min Exi Min Mat Damage Taken 1861 | . 655 168 . 187 851 Core 382 | . 107 61 . 73 141 Absorbed by Shields . | . . . . . . Core Remaining (%) 51 | 100 . . . 3 . Volleys Fired 123 | 7 55 8 . 14 39 Largest 2 | 2 2 2 . 2 2 Hottest 160 | 90 90 90 . 90 160 Shots Fired 203 | 14 79 15 . 28 67 Gun 161 | 14 59 15 . 28 45 Cannon 42 | . 20 . . . 22 Launcher . | . . . . . . Special . | . . . . . . Kinetic 16 | . 16 . . . . Thermal 86 | 7 56 . . . 23 Explosive . | . . . . . . Electromagnetic 101 | 7 7 15 . 28 44 Robot Hit Streak 22 | 11 12 10 . 10 22 Robot Miss Streak 3 | 1 2 2 . 3 3 Penetration Max . | . . . . . . Secondary Targets 3 | . . 1 . 1 1 Max Gunslinging Chain 1 | . . 1 . 1 1 Shots Hit Robots 152 | 12 54 12 . 23 51 Core Hits 81 | 3 20 9 . 19 30 Critical Hits 1 | . . . . . 1 Critical Kills 1 | . . . . . 1 Critical Parts Destroyed . | . . . . . . Melee Attacks 23 | . . . . 1 22 Impact . | . . . . . . Slashing 23 | . . . . 1 22 Piercing . | . . . . . . Sneak Attacks . | . . . . . . Combat Hostiles . | . . . . . . Follow-up Attacks . | . . . . . . Damage Inflicted 2555 | 126 733 160 . 479 1057 Guns 1517 | 126 472 130 . 264 525 Cannons 696 | . 261 . . . 435 Explosions 342 | . . 30 . 215 97 Melee . | . . . . . . Ramming . | . . . . . . Kinetic 81 | . 81 . . . . Thermal 1463 | 60 626 30 . 215 532 Explosive . | . . . . . . Electromagnetic 1011 | 66 26 130 . 264 525 Impact . | . . . . . . Slashing . | . . . . . . Piercing . | . . . . . . Highest Corruption 5 | . 2 2 2 2 5 Average Corruption 2 | . 2 2 2 2 5 Corruption Purged . | . . . . . . Effects 31 | . 5 4 3 9 10 Message Errors 9 | . 2 2 2 3 . Heat Flow Errors 4 | . 1 . . 2 1 Energy Discharges 6 | . 1 . 1 1 3 Data Loss (minor) 4 | . . 1 . 2 1 Data Loss (major) 2 | . . . . . 2 Targeting Errors 5 | . 1 1 . 1 2 Weapon Failures 1 | . . . . . 1 Overload Shots . | . . . . . . Overflow Damage 55 | . . 15 . . 40 Projectiles 18 | . . . . . 18 Explosions 37 | . . 15 . . 22 Melee . | . . . . . . Knockbacks . | . . . . . . Impact . | . . . . . . Kinetic . | . . . . . . Secondary . | . . . . . . Self-Inflicted Damage 171 | . . 35 . 53 83 Shots 5 | . . 1 . 2 2 Rammed . | . . . . . . Targets Rammed . | . . . . . . Kicked . | . . . . . . Crushed . | . . . . . . Highest Temperature 385 | 120 229 107 . 385 271 Average Temperature 82 | 56 60 52 . 120 86 Received Heat Transfer 600 | . 306 27 . 24 243 Siege Activations . | . . . . . . Robots Corrupted . | . . . . . . Combat Hostiles . | . . . . . . Parts Fried 4 | 1 . . . 1 2 Impact Corruptions . | . . . . . . Robots Melted 1 | . 1 . . . . Combat Hostiles 1 | . 1 . . . . Parts Melted 6 | 1 4 . . 1 . Heat Transferred 2914 | 185 1629 50 . 150 900 Parts Sabotaged . | . . . . . . Parts Stolen . | . . . . . . Parts Stripped . | . . . . . . Power Chain Reactions 6 | . . 1 . 2 3 Missiles Intercepted . | . . . . . . Alert | -11 -10 -10 -10 -9 -8 ------- Run | Scr Mat Min Exi Min Mat Peak Influence 315 | 10 286 126 . 315 209 Initial 98 | . 6 11 . . 98 Average 123 | 2 123 61 . 213 96 Maximum Alert Level 1 | . 1 . . 1 1 Low Security (%) 76 | 100 81 100 . 44 83 Level 1 23 | . 18 . . 55 16 Level 2 . | . . . . . . Level 3 . | . . . . . . Level 4 . | . . . . . . Level 5 . | . . . . . . High Security . | . . . . . . Max Security . | . . . . . . Squads Dispatched 11 | . 3 . . . 8 Investigation 2 | . 1 . . . 1 Extermination . | . . . . . . Reinforcement 5 | . 2 . . . 3 Assault . | . . . . . . Garrison 4 | . . . . . 4 Intercept . | . . . . . . Construction Impeded . | . . . . . . Haulers Reinforced . | . . . . . . Stealth | -11 -10 -10 -10 -9 -8 --------- Run | Scr Mat Min Exi Min Mat Distress Signals 3 | . 1 . . . 2 Communications Jammed . | . . . . . . Distress Signals . | . . . . . . Times Spotted 61 | . 20 5 . 18 18 Peak Tracking Total 11 | . 4 3 . 11 5 Tactical Retreats 8 | . 1 . . 2 5 Traps | -11 -10 -10 -10 -9 -8 ------- Run | Scr Mat Min Exi Min Mat Traps Triggered 4 | . 3 1 . . . Indirectly . | . . . . . . Trap Hack Attempts . | . . . . . . Triggered . | . . . . . . Disarmed . | . . . . . . Reprogrammed . | . . . . . . Reused . | . . . . . . Traps Extracted . | . . . . . . Installed . | . . . . . . Triggered . | . . . . . . Machines | -11 -10 -10 -10 -9 -8 ---------- Run | Scr Mat Min Exi Min Mat Machines Disabled 2 | . . . . 1 1 Max in Single Turn 1 | . . . . 1 1 Machines Sabotaged . | . . . . . . Garrisons Compromised . | . . . . . . Overloaded Fab Kills . | . . . . . . Fab Network Shutdowns . | . . . . . . Hacking | -11 -10 -10 -10 -9 -8 --------- Run | Scr Mat Min Exi Min Mat Machines Accessed 12 | . 3 1 4 1 3 Terminals 7 | . 3 . . 1 3 Fabricators . | . . . . . . Repair Stations . | . . . . . . Recycling Units . | . . . . . . Scanalyzers . | . . . . . . Garrison Access . | . . . . . . Total Hacks 48 | . 10 1 27 2 8 Successful 38 | . 4 1 27 2 4 Failed 10 | . 6 . . . 4 Catastrophic . | . . . . . . Database Lockouts . | . . . . . . Manual 18 | . 8 . 1 2 7 Terminals 20 | . 10 . . 2 8 Fabricators . | . . . . . . Repair Stations . | . . . . . . Recycling Units . | . . . . . . Scanalyzers . | . . . . . . Garrison Access . | . . . . . . Terminal Hacks 32 | . 1 1 27 1 2 Record 26 | . . . 26 . . Open Door 1 | . . 1 . . . Branch Access Points 1 | . . . . 1 . Unreport Threat 1 | . 1 . . . . Dispatch Records 1 | . . . . . 1 Recall Investigation 1 | . . . . . 1 EX-Prototype ID Bank 1 | . . . 1 . . Fabricator Hacks . | . . . . . . Repair Station Hacks . | . . . . . . Recycling Unit Hacks . | . . . . . . Scanalyzer . | . . . . . . Garrison Access Hacks . | . . . . . . Unauthorized Hacks 6 | . 3 . . 1 2 Terminals 6 | . 3 . . 1 2 Botnet 6 | . 3 . . 1 2 Fabricators . | . . . . . . Repair Stations . | . . . . . . Recycling Units . | . . . . . . Scanalyzers . | . . . . . . Garrison Access . | . . . . . . Data Cores Recovered . | . . . . . . Used . | . . . . . . Hacking Detections 7 | . 3 . . 1 3 Full Trace Events . | . . . . . . Feedback Events . | . . . . . . Feedback Blocked . | . . . . . . Robot Schematics Acquired . | . . . . . . Robots Built . | . . . . . . Matter . | . . . . . . Time . | . . . . . . Total Robot Build Rating . | . . . . . . Part Schematics Acquired . | . . . . . . Parts Built . | . . . . . . Matter . | . . . . . . Time . | . . . . . . Total Part Build Rating . | . . . . . . Parts Repaired . | . . . . . . Time . | . . . . . . Parts Recycled . | . . . . . . Recycled Matter . | . . . . . . Retrieved Matter . | . . . . . . Retrieved Components . | . . . . . . Parts Scanalyzed . | . . . . . . Part Schematics Acquired . | . . . . . . Parts Damaged . | . . . . . . Bothacking | -11 -10 -10 -10 -9 -8 ------------ Run | Scr Mat Min Exi Min Mat Used RIF Installer . | . . . . . . Robots Hacked . | . . . . . . Non-combat . | . . . . . . Combat . | . . . . . . Robot Hacks Applied . | . . . . . . Relay Couplers Released . | . . . . . . Robots Rewired . | . . . . . . Allies Hacked . | . . . . . . Hacks Repelled . | . . . . . . Allies | -11 -10 -10 -10 -9 -8 -------- Run | Scr Mat Min Exi Min Mat Total Allies 3 | . . . . 3 . Largest Group 3 | . . . . 3 2 Highest-Rated Group 40 | . . . . 40 24 Highest-Rated Ally 16 | . . . . 16 16 Total Orders . | . . . . . . Ally Attacks 17 | . . . . 17 . Total Damage 200 | . . . . 200 . Kills 2 | . . . . 2 . Allies Corrupted . | . . . . . . Allies Melted . | . . . . . . Intel | -11 -10 -10 -10 -9 -8 ------- Run | Scr Mat Min Exi Min Mat Robot Analysis Total . | . . . . . . Derelict Logs Recovered 2 | . . 1 . 1 . Drone Launches . | . . . . . . Drone Recoveries . | . . . . . . Exploration | -11 -10 -10 -10 -9 -8 ------------- Run | Scr Mat Min Exi Min Mat Turns Passed 3291 | 91 767 439 281 724 989 Spaces Moved 2005 | 49 425 402 279 355 495 Core 11 | 10 1 . . . . Treads 43 | . . . . . 43 Legs 241 | 39 202 . . . . Wheels 1593 | . 105 402 279 355 452 Hover . | . . . . . . Flight 117 | . 117 . . . . Fastest Speed 37 | 50 37 100 100 100 120 Average Speed 118 | 124 137 100 100 104 136 Slowest Speed 360 | 250 360 100 100 110 220 Overloaded Moves . | . . . . . . Propulsion Burnouts . | . . . . . . Robots Hopped . | . . . . . . Cave-ins Triggered 1 | . . . . . 1 Time Travels 1 | . . . . . 1 Exploration Rate (%) 48 | 4 66 68 62 63 28 Regions Visited 5 Branch Regions 3 Pre-discovered Areas . | . . . . . . Known Exits Taken . | . . . . . . Unknown Exits Taken 5 | 1 1 1 1 1 . Scrap Searched 2 | . . 1 . 1 . Spaces Dug 18 | . . . . 1 17 Terrain Destroyed 48 | . . 3 . 8 37 Melee 18 | . . . . 1 17 Projectile 3 | . . . . . 3 AOE 27 | . . 3 . 7 17 Terrain Rammed . | . . . . . . Walls Destroyed . | . . . . . . Machines Disabled . | . . . . . . Actions | -11 -10 -10 -10 -9 -8 --------- Run | Scr Mat Min Exi Min Mat Total 2665 | 61 528 426 282 677 691 Wait 420 | . 12 9 . 304 95 Move 2000 | 48 424 401 278 354 495 Hop . | . . . . . . Pick Up 21 | . 12 3 2 . 4 Fast Attach 26 | 6 11 . . . 9 Attach 11 | . 2 1 . 1 7 Detach 11 | . 4 . . 1 6 Swap 15 | . . 1 1 2 11 Drop 15 | . 8 3 1 . 3 Fire 123 | 7 55 8 . 14 39 Melee 23 | . . . . 1 22 Ram . | . . . . . . Kick . | . . . . . . Crush . | . . . . . . Escape Stasis . | . . . . . . Rewire . | . . . . . . Trap . | . . . . . . Miscellaneous . | . . . . . . Route ------- -11/Scrapyard -10/Materials (discovered 2 exits: [*Mat] / *Min) -10/Mines (discovered 3 exits: [*Mat x2] / *Exi) -10/Exiles -9/Mines -8/Materials History --------- Turn | Location | Event 5 | -11/Scrapyard | Discovered new exit (range 15) 92 | -11/Scrapyard | Entered Materials 312 | -10/Materials | Build established: Mutant 358 | -10/Materials | Lost 3 parts (1n2w) 592 | -10/Materials | Discovered new exit (range 10) 849 | -10/Materials | Discovered new exit (range 9) 859 | -10/Materials | Entered Mines 895 | -10/Mines | Found a damaged Exp. Sensor Array with a note attached 897 | -10/Mines | Found Prototype Device 908 | -10/Mines | Discovered new exit (range 9) 909 | -10/Mines | Learned Materials trap positions 1008 | -10/Mines | Discovered new exit (range 5) 1107 | -10/Mines | Met a Derelict who couldn't figure out how to use a Trap Extractor 1110 | -10/Mines | Core integrity fell below 50% 1258 | -10/Mines | Deemed a non-threat by the Exiles lab entrance 1259 | -10/Mines | Discovered new exit (range 5) 1298 | -10/Mines | Entered Exiles 1325 | -10/Exiles | Met 8R-AWN 1340 | -10/Exiles | Met EX-HEX 1367 | -10/Exiles | Met EX-BIN 1384 | -10/Exiles | Aligned with FarCom system 1385 | -10/Exiles | Given EX-Vault access code 1431 | -10/Exiles | Opened EX-Vault 1439 | -10/Exiles | Found Chronowheel 1461 | -10/Exiles | Warned to stay clear of 0b10 Research branches 1473 | -10/Exiles | Exiles lab attacked by MAIN.C 1571 | -10/Exiles | Discovered new exit (range 10) 1579 | -10/Exiles | Left Exiles lab with Chronowheel 1579 | -10/Exiles | Entered Mines 1612 | -9/Mines | Destroyed 7 combat bots 1722 | -9/Mines | Core integrity fell below 20% 1876 | -9/Mines | Discovered new exit (range 15) 2182 | -9/Mines | Assisted by bots powering up and referring to "LRC-V3" 2298 | -9/Mines | Learned Materials terminal intel 2303 | -9/Mines | Entered Materials 2303 | -8/Materials | Accompanied by 2 allies 2303 | -8/Materials | Evolved 4 slots: Utility x4 2304 | -8/Materials | Loaded intel: 16 trap records 2305 | -8/Materials | Loaded intel: 12 terminal locations 2305 | -8/Materials | Identified Exp. Sensor Array 2306 | -8/Materials | Activated Chronowheel 2306 | -8/Materials | Spacetime reconverged on an earlier point 2609 | -8/Materials | Build established: Hauler-Skirmisher 2779 | -8/Materials | Garrison activated, responded to threat 3022 | -8/Materials | Crushed by falling debris 3099 | -8/Materials | Build established: Hauler-Mutant 3219 | -8/Materials | Garrison activated, responded to threat 3292 | -8/Materials | Self-destructed Last Messages --------------- 03222_ U-05 Engineer builds a Wall. 03222_ W-25 Informer suffers critical hit. 03222_ W-25 Informer destroyed. 03233_ Destroyed Flight Unit. 03236_ Electrolysis Chamber disabled. 03239_ S-10 Pest destroyed. 03246_ U-05 Engineer builds a Wall. 03247_ Deuterium Engine destroyed. 03256_ Destroyed Particle Gun. 03257_ R-06 Scavenger collects Flight Unit. 03257_ R-06 Scavenger collects Lgt. Ion Engine. 03262_ System corrupted: Plasma Cannon failed to cycle. 03262_ R-06 Scavenger collects Flight Unit. 03264_ Destroyed Particle Gun. 03266_ Acquired 15 matter. 03267_ Acquired 10 matter. 03282_ Slug penetrates Wall. 03284_ System corrupted: Energy discharge (-11). 03285_ Slug penetrates Wall. 03290_ U-05 Engineer builds a Wall. Map ----- +----------------------------------------------------+ | ??????# """ """ #??????????????????????????? | | ??????# """ """ #??????????????????????????? | | ??????# #??????????????????????????? | | ??????# ] #??????????????????????????? | | ??????# #?????????????????#####????? | | ??????# ######????????????# #????? | | ?#############+## #????????????# ###### | | ?# T !# #????????????#// | | ?# ! # T #????????????#// | | ?#! % ###### #???????????## = | | ?# %= #????## ##????????##### | | ?#####+########### ##???????########## | | ?????# "% ############# ##???# | | ?????# ########### # ! ## ##?????* | | ?????# #??? ??# # ! ####??????? | | ?????# #???""" ?# # #?????????? | | ?????# #???"""" # #% ! #??????????? | | ?????# #???"""" t + #??????????? | | ?????# #???"""" # # """ """ #???????????? | | ?????# #?????????# # "" """ #????????????? | | ?????# #???????? # # "" """ #????????????? | | ?????# #??????? # r###########????????????? | | ?????# ########### #??????????????????????? | | ?????# # !# #??????????????????????? | | ????## # # #??????????????????????? | | ????#" "! #%@#??????????????????????? | | ????#"%# # #??????????????????????? | | ????## # """ """ # #???????????^??^??^^???? | | ????## # """ """?# #???????????^?^????????? | | ?????# # """ ""??# #??????????????????????? | | ?????# # ??# #??????????????????????? | | ?????# #####+#???# h###?????????g??????????? | | ?????#%#### ????g???????????????? | | ?????# ?????????????????????? | | ?????###### ?????????????????????? | | ??????## #???????# #??????????????w??????? | | ??????#"########## #????Y????????????????? | | ??????## #u #?????????????????????? | | ???????# # #?????????????????????? | | ???????# # #?????????????????????? | | ???????# """ """ # #?"T"?????????????????? | | ???????# """ """ # #?????????????????????? | | ???????# """ """ + #?????????????????????? | | ???????# # #?????????????????????? | | ???????# # #?????????????????????? | | ???????#+######### #?????????????????????? | | ???????# #???# #?????????????????????? | | ???????# #???# % +?????????????????????? | | ???????# #???# % # ????????????????????? | | ???????# #???#"""### # ???????????????????? | +----------------------------------------------------+ Best States ------------- Heat Dissipation 45 Energy Generation 14 Energy Capacity 675 Matter Stores 300 Matter Capacity 300 Sight Range 16 Robot Scan Range 30 Terrain Scan Density 10 Armor Coverage 150 Evasion (%) 40 Targeting Accuracy 5 Armor Integrity Analysis 33 Recoil Reduction 2 Item Schematics ----------------- None Robot Schematics ------------------ None Fabricated ------------ Nothing Alien Tech Used ----------------- None Achievements -------------- None Challenges ------------ None Game ------ Seed HoverCombatLaser Manual? 0 Play Time 00:30:41 Cumulative 25.3 hours Start 2021.04.04 @ 08:35:49 End 2021.04.04 @ 09:14:44 Sessions 1 Manual Loads 0 Difficulty Rogue Special Mode None Game No. 52 Rogue 49 Adventurer 0 Explorer 3 Win Type - Total 0 Types 0/0/0/0/0/0/0/0/0 Lore% 26 Gallery% 44 Achievement% 29 Wizard Run 0 Options --------- ASCII 0 Keyboard 1 Movement Numpad Keybinds 0 Fullscreen 1 Font 18/SmallcapsGlow Map View 76x50 Tactical HUD 1 Map Filters NONE Filters NONE Steam 1 RUN: 5968ce0b-ce73-4080-bdac-632ea6278d65